bitfinex/quotes_BTCUSD_20251124
["timestamp","ask_amount","ask_price","bid_price","bid_amount"]
[1763957588136,0.01139653,87746.0,87733.0,0.0391326]
[1763957588334,0.02136292,87745.0,87733.0,0.0391326]
[1763957588565,0.58595304,87750.0,87734.0,0.02484]
[1763957588771,0.02136324,87749.0,87734.0,0.02484]
[1763957588936,0.02136324,87748.0,87734.0,0.02484]
[1763957589159,0.58595304,87750.0,87734.0,0.02484]
[1763957589160,0.02136324,87747.0,87734.0,0.02484]
[1763957589327,0.02136324,87747.0,87733.0,0.0132926]
[1763957589328,0.0113964,87747.0,87733.0,0.0132926]
[1763957589525,0.23932816,87746.0,87733.0,0.0132926]
[1763957589774,0.01139679,87744.0,87733.0,0.0132926]
[1763957589985,0.22792307,87749.0,87733.0,0.0132926]
[1763957590135,0.02135873,87748.0,87734.0,0.02484]
[1763957590339,0.58595304,87750.0,87734.0,0.02484]
[1763957590542,0.43347878,87750.0,87734.0,0.02484]
[1763957591282,0.43347878,87750.0,87733.0,0.0132926]
[1763957591283,0.0113964,87747.0,87733.0,0.0132926]
[1763957591486,0.22793061,87746.0,87733.0,0.0381326]
[1763957591665,0.01139679,87744.0,87733.0,0.0381326]
[1763957592072,0.01139782,87736.0,87733.0,0.0003926]
[1763957592231,0.23935467,87736.0,87733.0,0.0003926]
[1763957592439,0.22796179,87734.0,87733.0,0.0003926]
[1763957592642,0.01139744,87739.0,87733.0,0.0003926]
[1763957592847,0.01139782,87736.0,87733.0,0.0013926]
[1763957593045,0.23935421,87737.0,87733.0,0.0013926]
[1763957593246,0.01139782,87736.0,87733.0,0.0003926]
[1763957593459,0.23935583,87736.0,87733.0,0.0013926]
[1763957593663,0.23935421,87737.0,87733.0,0.0013926]
[1763957593862,0.23935421,87737.0,87733.0,0.0003926]
[1763957594058,0.23935421,87737.0,87733.0,0.0013926]
[1763957594469,0.22795973,87735.0,87733.0,0.0013926]
[1763957594664,0.22796179,87734.0,87733.0,0.0013926]
[1763957595418,0.22796179,87734.0,87733.0,0.0003926]
[1763957595794,0.22796179,87734.0,87733.0,0.0013926]
[1763957596421,0.01139782,87736.0,87733.0,0.0013926]
[1763957596603,2.22796179,87734.0,87733.0,0.0013926]
[1763957597231,2.23392488,87734.0,87733.0,0.0013926]
[1763957598474,2.23392488,87734.0,87733.0,0.0003926]
[1763957599418,0.01140211,87703.0,87692.0,0.0129]
[1763957599621,0.01140237,87701.0,87686.0,0.00265837]
[1763957599819,0.01140172,87706.0,87686.0,0.02749837]
[1763957599820,0.23943658,87706.0,87686.0,0.02749837]
[1763957600028,0.01140263,87699.0,87686.0,0.00265837]
[1763957600206,0.58595304,87700.0,87686.0,0.00265837]
[1763957601123,0.58595304,87710.0,87687.0,0.02484]
[1763957601435,2.0,87709.0,87699.0,0.02977]
[1763957601626,2.0,87709.0,87699.0,0.0129]
[1763957602557,0.22804277,87703.0,87686.0,0.00265837]
[1763957602760,0.58595304,87700.0,87686.0,0.00265837]
[1763957603465,0.58595304,87700.0,87686.0,0.02749837]
[1763957603644,0.59735554,87700.0,87686.0,0.02749837]
[1763957603843,0.01140276,87698.0,87686.0,0.02749837]
[1763957604047,0.59735554,87700.0,87686.0,0.02734669]
[1763957604428,0.59735554,87700.0,87686.0,0.00250669]
[1763957604429,0.22806837,87693.0,87686.0,0.00250669]
[1763957604631,0.01140354,87692.0,87686.0,0.00250669]
[1763957604838,0.22808248,87688.0,87686.0,0.00350669]
[1763957605438,0.22808248,87688.0,87686.0,0.00250669]
[1763957605825,0.22808248,87688.0,87686.0,0.00350669]
[1763957606030,0.323,87687.0,87686.0,0.00250669]
[1763957606471,0.323,87687.0,87686.0,0.00350669]
[1763957607513,0.55108398,87687.0,87686.0,0.00350669]
[1763957607643,0.55108398,87687.0,87686.0,0.00450669]
[1763957608181,0.55108398,87687.0,87686.0,0.00350669]
[1763957608347,0.55108398,87687.0,87686.0,0.00250669]
[1763957609378,2.55108398,87687.0,87686.0,0.00250669]
[1763957609579,2.57316668,87687.0,87686.0,0.00250669]
[1763957610142,2.57227852,87687.0,87686.0,0.00250669]
[1763957610855,2.34419454,87687.0,87686.0,0.00250669]
[1763957611590,2.34519454,87687.0,87686.0,0.00250669]
[1763957612128,2.57327852,87687.0,87686.0,0.00350669]
[1763957612332,2.57227852,87687.0,87686.0,0.00350669]
[1763957612542,2.57227852,87687.0,87686.0,0.00250669]
[1763957614117,0.22815162,87661.0,87660.0,0.0004]
[1763957614524,0.09696278,87663.0,87660.0,0.0004]
[1763957614746,0.45614496,87692.0,87661.0,0.0137]
[1763957614960,0.01140706,87665.0,87661.0,0.0137]
[1763957615163,0.01140693,87666.0,87660.0,0.0004]
[1763957615164,0.22815162,87661.0,87660.0,0.0004]
[1763957615373,2.22815162,87661.0,87660.0,0.0004]
[1763957615514,2.24931715,87661.0,87660.0,0.0004]
[1763957616562,2.33525081,87661.0,87660.0,0.0004]
[1763957617920,2.22817765,87651.0,87640.0,0.0004]
[1763957618115,2.24934318,87651.0,87640.0,0.0004]
[1763957619118,2.02216553,87651.0,87640.0,0.0004]
[1763957619318,2.25034318,87651.0,87640.0,0.0004]
[1763957619520,2.25034318,87651.0,87650.0,0.00051776]
[1763957620430,2.24934318,87651.0,87650.0,0.00051776]
[1763957620788,2.02116553,87651.0,87650.0,0.00051776]
[1763957621973,0.02116553,87651.0,87650.0,0.00051776]
[1763957622568,0.02115059,87651.0,87650.0,0.00151776]
[1763957623129,0.02115059,87651.0,87650.0,0.04511776]
[1763957623369,0.02115059,87651.0,87650.0,0.01818776]
[1763957623681,0.02115059,87651.0,87650.0,0.04511776]
[1763957624280,0.02115059,87651.0,87650.0,0.05099954]
[1763957625005,0.02115059,87651.0,87650.0,0.00263921]
[1763957625605,0.24932824,87651.0,87650.0,0.00263921]
[1763957626167,2.24932824,87651.0,87650.0,0.00263921]
[1763957626773,2.24932824,87651.0,87650.0,0.00163921]
[1763957627902,2.02115059,87651.0,87650.0,0.00163921]
[1763957628089,2.24932824,87651.0,87650.0,0.00163921]
[1763957629112,2.02115059,87651.0,87650.0,0.00163921]
[1763957629309,2.24932824,87651.0,87650.0,0.00163921]
[1763957629509,2.02115059,87651.0,87650.0,0.00163921]
[1763957630557,2.02115059,87651.0,87650.0,0.00263921]
[1763957630723,2.02115059,87651.0,87650.0,0.00163921]
[1763957632106,2.24932824,87651.0,87650.0,0.00163921]
[1763957635476,2.25032824,87651.0,87650.0,0.00163921]
[1763957638364,2.24932824,87651.0,87650.0,0.00163921]
[1763957638610,2.02115059,87651.0,87650.0,0.00163921]
[1763957638762,2.24932824,87651.0,87650.0,0.00163921]
[1763957639386,2.02115059,87651.0,87650.0,0.00163921]
[1763957640100,1.8434944,87655.0,87650.0,0.00163921]
[1763957640306,0.01140771,87660.0,87650.0,0.00051776]
[1763957640516,0.22815703,87659.0,87650.0,0.00051776]
[1763957640718,0.01140784,87659.0,87650.0,0.00051776]
[1763957640930,0.01140862,87653.0,87650.0,0.00151776]
[1763957641137,0.22817765,87651.0,87650.0,0.00151776]
[1763957641351,0.22817765,87651.0,87650.0,0.00051776]
[1763957641985,2.22817765,87651.0,87650.0,0.00051776]
[1763957643767,2.22817765,87651.0,87650.0,0.00151776]
[1763957643974,2.22817765,87651.0,87650.0,0.00051776]
[1763957645205,2.22917765,87651.0,87650.0,0.00051776]
[1763957645361,2.25375047,87651.0,87650.0,0.00051776]
[1763957646103,2.22820369,87641.0,87640.0,0.0004]
[1763957646385,2.22820369,87641.0,87640.0,0.0005118]
[1763957646558,2.22820369,87641.0,87640.0,0.00194493]
[1763957647129,2.22820369,87641.0,87625.0,0.011411]
[1763957647334,0.22824275,87626.0,87625.0,0.011411]
[1763957647533,0.22824275,87626.0,87591.0,0.01289]
[1763957647534,0.22825578,87621.0,87591.0,0.01289]
[1763957647757,0.55128183,87611.0,87591.0,0.01289]
[1763957647957,2.55128183,87611.0,87591.0,0.01289]
[1763957648157,2.55128183,87611.0,87590.0,0.0002]
[1763957648361,2.55128183,87611.0,87595.0,0.01289]
[1763957648562,2.55128183,87611.0,87590.0,0.0002]
[1763957649992,0.55130789,87601.0,87590.0,0.0002]
[1763957650155,2.55130789,87601.0,87590.0,0.0002]
[1763957650355,0.55133396,87591.0,87590.0,0.0002]
[1763957651717,0.55133396,87591.0,87590.0,0.00031789]
[1763957652090,0.5725601,87591.0,87590.0,0.00031789]
[1763957652384,0.34422614,87591.0,87590.0,0.00031789]
[1763957652805,0.43195196,87591.0,87590.0,0.00031789]
[1763957654561,2.43195196,87591.0,87590.0,0.00031789]
[1763957654921,2.43195196,87591.0,87590.0,0.00187694]
[1763957656307,2.34422614,87591.0,87590.0,0.00187694]
[1763957656512,0.02122614,87591.0,87590.0,0.04383694]
[1763957656958,0.02122614,87591.0,87590.0,0.04483694]
[1763957657948,0.02122614,87591.0,87590.0,0.01908694]
[1763957658203,0.01141526,87602.0,87590.0,0.01908694]
[1763957658405,0.14450499,87607.0,87591.0,0.02575]
[1763957658597,0.01141487,87605.0,87601.0,0.00121591]
[1763957658806,0.01141487,87605.0,87591.0,0.02575]
[1763957659037,0.01141461,87607.0,87591.0,0.02575]
[1763957659255,0.08688679,87607.0,87591.0,0.02575]
[1763957659877,2.01141435,87609.0,87591.0,0.02575]
[1763957660084,2.0,87608.0,87591.0,0.02575]
[1763957660504,2.0,87609.0,87608.0,0.01289]
[1763957660716,2.0,87618.0,87608.0,0.01289]
[1763957660919,2.0,87615.0,87609.0,0.01621]
[1763957661066,2.0,87614.0,87609.0,0.01621]
[1763957661274,2.0,87613.0,87609.0,0.01621]
[1763957661503,2.0,87617.0,87613.0,0.01621]
[1763957661646,2.0,87617.0,87610.0,0.02575]
[1763957661647,2.0,87617.0,87616.0,0.01621]
[1763957662364,2.0,87617.0,87608.0,0.01289]
[1763957662558,0.22828047,87612.0,87608.0,0.01389]
[1763957662759,0.01141409,87611.0,87608.0,0.001]
[1763957662998,0.01141461,87607.0,87596.0,0.01289]
[1763957663225,0.01141435,87609.0,87596.0,0.01289]
[1763957663474,0.01141487,87605.0,87596.0,0.01289]
[1763957663693,0.22830007,87604.0,87596.0,0.01289]
[1763957663917,0.01141591,87597.0,87594.0,0.01289]
[1763957664130,0.01141643,87593.0,87590.0,0.00031789]
[1763957664367,0.23973696,87596.0,87590.0,0.00031789]
[1763957664368,0.22832395,87595.0,87590.0,0.00031789]
[1763957664567,0.01141643,87593.0,87590.0,0.00031789]
[1763957664774,0.01141617,87595.0,87590.0,0.00031789]
[1763957665025,0.22829141,87608.0,87594.0,0.01621]
[1763957665263,0.22828068,87612.0,87596.0,0.01289]
[1763957665264,2.23969358,87612.0,87596.0,0.01289]
[1763957665411,0.01141422,87610.0,87596.0,0.01969579]
[1763957665626,2.0,87612.0,87597.0,0.02575]
[1763957665833,0.01141487,87605.0,87597.0,0.02575]
[1763957666029,0.01141513,87603.0,87597.0,0.02575]
[1763957666230,0.01141526,87602.0,87597.0,0.02575]
[1763957666485,0.01141513,87603.0,87597.0,0.02575]
[1763957666793,0.01141526,87602.0,87596.0,0.01969579]
[1763957667034,0.10337756,87604.0,87596.0,0.01969579]
[1763957667246,0.22830502,87603.0,87596.0,0.01969579]
[1763957667473,0.22830502,87603.0,87596.0,0.01289]
[1763957667474,0.01141513,87603.0,87596.0,0.01289]
[1763957667709,0.01141617,87595.0,87590.0,0.00031789]
[1763957667922,0.01141578,87598.0,87590.0,0.00031789]
[1763957668160,0.01141604,87596.0,87590.0,0.00031789]
[1763957668385,0.0114163,87594.0,87590.0,0.00031789]
[1763957668607,0.23974617,87593.0,87590.0,0.00031789]
[1763957668822,0.22833206,87592.0,87590.0,0.00031789]
[1763957669078,0.23974617,87593.0,87590.0,0.00031789]
[1763957669291,0.22830391,87603.0,87596.0,0.00137187]
[1763957669520,0.01141474,87606.0,87592.0,0.01621]
[1763957669738,0.01141461,87607.0,87599.0,0.01621]
[1763957669934,0.01141474,87606.0,87598.0,0.01289]
[1763957670183,2.0,87602.0,87595.0,0.01289]
[1763957670403,0.02122916,87601.0,87595.0,0.01289]
[1763957670619,0.02122916,87600.0,87595.0,0.01289]
[1763957670840,0.02122916,87599.0,87595.0,0.01289]
[1763957671060,0.02122916,87598.0,87595.0,0.01289]
[1763957671292,0.02122916,87597.0,87595.0,0.01289]
[1763957671515,2.0,87615.0,87606.0,0.01621]
[1763957671734,0.0212443,87614.0,87606.0,0.01621]
[1763957672222,0.02124465,87613.0,87606.0,0.01621]
[1763957672443,0.02124465,87612.0,87606.0,0.01621]
[1763957672702,0.02124465,87611.0,87606.0,0.01621]
[1763957672947,0.02124465,87610.0,87606.0,0.01621]
[1763957673186,0.58397859,87618.0,87606.0,0.01621]
[1763957673187,0.02124465,87609.0,87606.0,0.01621]
[1763957673436,0.02125371,87608.0,87595.0,0.01289]
[1763957673673,0.01141396,87612.0,87595.0,0.03844]
[1763957673888,0.86184635,87610.0,87595.0,0.03844]
[1763957674109,0.86184635,87610.0,87595.0,0.01289]
[1763957674356,0.86184635,87610.0,87596.0,0.02555]
[1763957674791,0.23970814,87607.0,87598.0,0.00130948]
[1763957674995,0.23971047,87606.0,87596.0,0.02555]
[1763957675203,0.011415,87604.0,87595.0,0.01289]
[1763957675412,0.01141474,87606.0,87595.0,0.01289]
[1763957675413,0.01141487,87605.0,87595.0,0.01289]
[1763957675620,0.23971799,87603.0,87595.0,0.01289]
[1763957675823,0.01141539,87601.0,87595.0,0.01289]
[1763957676113,0.23974736,87593.0,87590.0,0.00031789]
[1763957676324,0.86184635,87600.0,87590.0,0.00031789]
[1763957676512,0.86184635,87600.0,87595.0,0.001]
[1763957676983,0.86184635,87600.0,87596.0,0.01327]
[1763957678149,0.01141565,87599.0,87595.0,0.01427]
[1763957678328,0.86184635,87600.0,87595.0,0.01327]
[1763957678956,0.01141604,87596.0,87590.0,0.00031789]
[1763957679082,0.22833188,87592.0,87590.0,0.00031789]
[1763957679285,0.22833396,87591.0,87590.0,0.00031789]
[1763957679488,0.22925396,87591.0,87590.0,0.00031789]
[1763957681376,0.31560786,87591.0,87590.0,0.00131789]
[1763957681582,0.31560786,87591.0,87590.0,0.00187694]
[1763957681784,0.31560786,87591.0,87590.0,0.00287694]
[1763957681993,0.32887786,87591.0,87590.0,0.00287694]
[1763957682195,0.1005439,87591.0,87590.0,0.00287694]
[1763957682405,0.32887786,87591.0,87590.0,0.00287694]
[1763957684396,0.32979786,87591.0,87590.0,0.00287694]
[1763957684604,0.22836003,87581.0,87565.0,0.01327]
[1763957684809,0.22836003,87581.0,87560.0,0.0004]
[1763957684810,2.22928003,87581.0,87580.0,0.00031797]
[1763957685138,2.22928003,87581.0,87580.0,0.0006299]
[1763957685343,2.25057991,87581.0,87580.0,0.0006299]
[1763957685580,2.25200991,87581.0,87580.0,0.0006299]
[1763957686127,2.2283861,87571.0,87560.0,0.0004]
[1763957686342,2.34807876,87571.0,87570.0,0.00025819]
[1763957686618,2.34950876,87571.0,87570.0,0.00057018]
[1763957686818,2.35408921,87571.0,87570.0,0.00057018]
[1763957687636,0.22841219,87561.0,87560.0,0.0004]
[1763957687844,0.25114207,87561.0,87560.0,0.0004]
[1763957688058,0.25114207,87561.0,87560.0,0.00071204]
[1763957688185,0.03963036,87561.0,87560.0,0.00071204]
[1763957688606,0.03944386,87561.0,87560.0,0.00071204]
[1763957689318,0.04068386,87561.0,87560.0,0.00071204]
[1763957691054,0.22843617,87552.0,87536.0,0.01382]
[1763957691249,0.1194203,87551.0,87550.0,0.000318]
[1763957692037,0.1332403,87551.0,87550.0,0.000318]
[1763957692288,0.1332403,87551.0,87550.0,0.0006301]
[1763957692643,0.36167858,87551.0,87550.0,0.0006301]
[1763957693266,0.02121752,87551.0,87550.0,0.0006301]
[1763957693467,0.2496558,87551.0,87550.0,0.0006301]
[1763957693735,0.2508958,87551.0,87550.0,0.0006301]
[1763957694558,0.02121752,87551.0,87550.0,0.0006301]
[1763957695166,2.0,87559.0,87550.0,0.0006301]
[1763957695492,0.13131828,87556.0,87550.0,0.000318]
[1763957695645,0.02118667,87555.0,87550.0,0.000318]
[1763957695841,0.01142165,87553.0,87550.0,0.000318]
[1763957696043,0.22843828,87551.0,87550.0,0.000318]
[1763957696256,0.33492451,87551.0,87550.0,0.000318]
[1763957696456,2.43084806,87551.0,87550.0,0.000318]
[1763957696652,0.22846437,87541.0,87529.0,0.01382]
[1763957696854,0.25088262,87541.0,87529.0,0.01382]
[1763957697098,0.34908537,87541.0,87521.0,0.01382]
[1763957697308,0.36290537,87541.0,87521.0,0.01382]
[1763957698013,0.34908537,87541.0,87521.0,0.01382]
[1763957698213,0.34784537,87541.0,87521.0,0.01382]
[1763957698631,0.34784537,87541.0,87529.0,0.01382]
[1763957698961,0.34784537,87541.0,87503.0,0.01382]
[1763957698962,2.34908537,87541.0,87517.0,0.01382]
[1763957699289,2.36290537,87541.0,87517.0,0.01382]
[1763957700495,2.36290537,87541.0,87503.0,0.01382]
[1763957700496,0.22849047,87531.0,87505.0,0.01382]
[1763957700704,0.22854008,87512.0,87503.0,0.01382]
[1763957700953,0.01142726,87510.0,87503.0,0.0003938]
[1763957701109,0.22856098,87504.0,87503.0,0.0003938]
[1763957701306,0.01142726,87510.0,87503.0,0.0003938]
[1763957701556,0.02113702,87509.0,87503.0,0.0003938]
[1763957701727,0.323,87504.0,87503.0,0.0003938]
[1763957701927,0.40928526,87504.0,87503.0,0.0003938]
[1763957703258,0.43041689,87504.0,87503.0,0.0003938]
[1763957703433,0.55156881,87501.0,87478.0,0.01382]
[1763957703636,0.57270044,87501.0,87500.0,0.00031804]
[1763957704601,0.34413163,87501.0,87500.0,0.00031804]
[1763957705958,0.323,87501.0,87500.0,0.04478804]
[1763957706368,0.323,87501.0,87500.0,0.00219168]
[1763957706764,0.34410411,87501.0,87500.0,0.00219168]
[1763957709824,2.34410411,87501.0,87500.0,0.00219168]
[1763957710414,2.34410411,87501.0,87470.0,0.0002]
[1763957710415,0.46391888,87480.0,87470.0,0.0002]
[1763957710601,0.24006711,87476.0,87470.0,0.00031771]
[1763957710811,1.05283027,87480.0,87470.0,0.00031771]
[1763957710977,0.03254831,87479.0,87470.0,0.00031771]
[1763957711190,0.24006628,87476.0,87470.0,0.00031771]
[1763957711379,0.24006003,87479.0,87470.0,0.00031771]
[1763957711380,0.021117,87475.0,87470.0,0.00031771]
[1763957711584,0.021117,87474.0,87470.0,0.00031771]
[1763957711764,0.67388099,87480.0,87470.0,0.00031771]
[1763957711765,0.021117,87473.0,87470.0,0.00031771]
[1763957711976,0.021117,87472.0,87470.0,0.00031771]
[1763957712192,0.02111377,87471.0,87470.0,0.00031771]
[1763957713573,0.03692452,87471.0,87470.0,0.00031771]
[1763957714214,0.03692452,87471.0,87470.0,0.00131771]
[1763957714429,0.03692839,87471.0,87470.0,0.00131771]
[1763957714708,2.03692839,87471.0,87470.0,0.00031771]
[1763957714909,2.04290923,87471.0,87470.0,0.00031771]
[1763957715705,0.22867335,87461.0,87460.0,0.0002]
[1763957715932,2.24979099,87461.0,87460.0,0.00031804]
[1763957716345,2.24979099,87461.0,87460.0,0.00156813]
[1763957716604,0.01143602,87443.0,87420.0,0.02672]
[1763957716808,0.58891139,87431.0,87421.0,0.01289325]
[1763957717021,0.01143706,87435.0,87421.0,0.01289325]
[1763957717230,0.58891139,87431.0,87421.0,0.01289325]
[1763957717653,0.01143785,87429.0,87421.0,0.00039325]
[1763957717862,0.52108059,87428.0,87421.0,0.00039325]
[1763957718066,2.0,87410.0,87378.0,0.0125]
[1763957718215,0.58891139,87390.0,87378.0,0.0125]
[1763957718415,0.58891139,87390.0,87373.0,0.0125]
[1763957718619,0.0006472,87389.0,87376.0,0.0125]
[1763957718831,0.58891139,87390.0,87373.0,0.0125]
[1763957718832,0.60141139,87390.0,87373.0,0.0125]
[1763957719224,0.60141139,87390.0,87361.0,0.02672]
[1763957719225,0.09696278,87381.0,87367.0,0.0125]
[1763957720122,2.09696278,87381.0,87353.0,0.0125]
[1763957720325,0.0114457,87369.0,87346.0,0.0125]
[1763957720549,0.58891139,87370.0,87348.0,0.09696278]
[1763957720785,0.58891139,87370.0,87349.0,0.01486828]
[1763957721089,0.58891139,87370.0,87349.0,0.04158828]
[1763957721306,0.58891139,87370.0,87369.0,0.0125]
[1763957721450,2.0,87378.0,87350.0,0.02672]
[1763957721650,0.09735406,87381.0,87351.0,0.09696278]
[1763957721868,0.09735406,87381.0,87350.0,0.02672]
[1763957721869,0.58891139,87361.0,87350.0,0.02672]
[1763957722035,0.58891139,87361.0,87346.0,0.0125]
[1763957722318,0.58891139,87356.0,87346.0,0.0125]
[1763957722527,0.58891139,87356.0,87355.0,0.00328619]
[1763957722727,0.01598011,87356.0,87355.0,0.00328619]
[1763957722937,0.58891139,87365.0,87355.0,0.00328619]
[1763957723140,0.60427701,87365.0,87346.0,0.0125]
[1763957723348,0.58891139,87356.0,87346.0,0.03922]
[1763957723555,0.58891139,87360.0,87349.0,0.001]
[1763957723762,0.01536562,87365.0,87364.0,0.03025]
[1763957723963,0.58891139,87380.0,87364.0,0.03025]
[1763957724168,0.58891139,87374.0,87350.0,0.01496828]
[1763957724372,0.58891139,87361.0,87355.0,0.001]
[1763957724577,0.58891139,87370.0,87356.0,0.02672]
[1763957725206,0.58891139,87370.0,87364.0,0.001]
[1763957725401,0.58891139,87374.0,87364.0,0.001]
[1763957725815,2.0,87379.0,87364.0,0.001]
[1763957726022,0.09696278,87371.0,87364.0,0.001]
[1763957726436,0.10840822,87371.0,87364.0,0.001]
[1763957726636,2.0,87370.0,87364.0,0.001]
[1763957726843,0.22892462,87365.0,87364.0,0.001]
[1763957727251,0.01144688,87360.0,87335.0,0.02672]
[1763957727461,0.58891139,87356.0,87335.0,0.02672]
[1763957727660,0.58891139,87360.0,87356.0,0.001]
[1763957727661,0.41062753,87360.0,87356.0,0.001]
[1763957727870,0.01144531,87372.0,87356.0,0.001]
[1763957727871,2.0,87365.0,87356.0,0.002]
[1763957728076,2.0,87365.0,87356.0,0.001]
[1763957728281,2.0,87365.0,87364.0,0.00300421]
[1763957728529,0.09696278,87371.0,87364.0,0.00400421]
[1763957728530,2.0,87370.0,87364.0,0.00400421]
[1763957728730,2.0,87370.0,87364.0,0.001]
[1763957728934,2.0,87370.0,87356.0,0.001]
[1763957729563,0.58891139,87366.0,87349.0,0.02672]
[1763957729802,0.58891139,87360.0,87349.0,0.02672]
[1763957730010,0.58891139,87360.0,87338.0,0.02672]
[1763957730221,0.58891139,87356.0,87338.0,0.02672]
[1763957730836,0.09696278,87355.0,87337.0,0.0125]
[1763957731051,0.09696278,87355.0,87303.0,0.09696278]
[1763957731052,0.00013,87338.0,87319.0,0.0125]
[1763957731257,0.58891139,87330.0,87319.0,0.0125]
[1763957731672,0.01584256,87329.0,87319.0,0.0125]
[1763957731880,0.58891139,87330.0,87319.0,0.0125]
[1763957732100,0.58930219,87330.0,87319.0,0.0125]
[1763957732526,0.58930219,87330.0,87319.0,0.0145]
[1763957732948,0.0003908,87330.0,87329.0,0.01775]
[1763957734315,0.0003908,87330.0,87319.0,0.0125]
[1763957734471,0.58930219,87330.0,87319.0,0.0125]
[1763957734690,0.58930219,87330.0,87329.0,0.00410114]
[1763957734875,0.0003908,87330.0,87329.0,0.00410114]
[1763957735278,0.0005208,87330.0,87329.0,0.00410114]
[1763957735490,0.0003908,87330.0,87329.0,0.00410114]
[1763957735887,0.0005208,87330.0,87329.0,0.00410114]
[1763957736455,2.0005208,87330.0,87329.0,0.00410114]
[1763957736610,2.0006508,87330.0,87329.0,0.00410114]
[1763957737838,0.22905214,87317.0,87286.0,0.0001]
[1763957738040,0.58891139,87296.0,87287.0,0.02764]
[1763957738223,0.58891139,87296.0,87288.0,0.02291265]
[1763957738424,0.58891139,87296.0,87289.0,0.01601154]
[1763957738667,0.58891139,87296.0,87295.0,0.01947563]
[1763957739048,0.58891139,87305.0,87295.0,0.01947563]
[1763957739246,0.58930195,87305.0,87304.0,0.00078347]
[1763957739475,0.00039056,87305.0,87304.0,0.00078347]
[1763957740324,0.00039056,87305.0,87304.0,0.04683347]
[1763957740531,0.00039056,87305.0,87304.0,0.05281482]
[1763957742562,0.00039056,87305.0,87304.0,0.05581482]
[1763957742859,0.00039056,87305.0,87304.0,0.05381482]
[1763957743043,0.00039056,87305.0,87304.0,0.07672327]
[1763957743273,0.00039056,87305.0,87304.0,0.07572327]
[1763957743572,0.58891139,87350.0,87306.0,0.00998]
[1763957743704,0.58891139,87350.0,87349.0,0.01298]
[1763957743925,2.0,87358.0,87349.0,0.01298]
[1763957744107,0.11795957,87357.0,87349.0,0.01298]
[1763957744310,0.02099679,87356.0,87342.0,0.01298]
[1763957744509,0.09696278,87357.0,87329.0,0.02764]
[1763957744510,2.0,87351.0,87329.0,0.02764]
[1763957744734,0.58891139,87340.0,87329.0,0.02764]
[1763957744936,0.58891139,87340.0,87329.0,0.02768936]
[1763957746293,0.58891139,87340.0,87329.0,0.00204936]
[1763957746410,0.2290101,87333.0,87329.0,0.00404936]
[1763957746615,0.0210934,87332.0,87330.0,0.01314]
[1763957746820,0.0210934,87331.0,87330.0,0.01314]
[1763957747225,0.0210934,87339.0,87330.0,0.0559]
[1763957747439,0.0210934,87338.0,87330.0,0.0559]
[1763957747659,0.0210934,87337.0,87330.0,0.01314]
[1763957747862,0.58891139,87340.0,87336.0,0.01762]
[1763957748088,0.02113057,87339.0,87331.0,0.02514]
[1763957748306,0.02113057,87338.0,87331.0,0.02514]
[1763957748531,0.02113057,87337.0,87331.0,0.02514]
[1763957748733,0.02113057,87336.0,87331.0,0.02514]
[1763957748938,0.02113057,87335.0,87331.0,0.02514]
[1763957749071,0.02113057,87334.0,87332.0,0.09696278]
[1763957749278,0.58891139,87350.0,87336.0,0.002]
[1763957749474,0.58891139,87350.0,87349.0,0.01314]
[1763957749680,0.02115829,87350.0,87349.0,0.01314]
[1763957749918,0.58891139,87359.0,87349.0,0.01314]
[1763957749919,2.0,87358.0,87349.0,0.01314]
[1763957750123,0.00598872,87355.0,87349.0,0.01314]
[1763957750338,0.00598872,87355.0,87350.0,0.02514]
[1763957750658,0.00598872,87355.0,87349.0,0.01314]
[1763957751003,0.00598872,87355.0,87342.0,0.01314]
[1763957751233,0.58891139,87352.0,87342.0,0.01314]
[1763957752011,0.58891139,87352.0,87349.0,0.001]
[1763957752235,0.00598872,87355.0,87349.0,0.001]
[1763957752481,0.00598872,87355.0,87343.0,0.02514]
[1763957752643,0.58891139,87352.0,87349.0,0.001]
[1763957752854,0.00598872,87355.0,87349.0,0.001]
[1763957753052,0.00598872,87355.0,87351.0,0.01762]
[1763957753582,0.58891139,87359.0,87351.0,0.01762]
[1763957753793,0.10840835,87370.0,87351.0,0.04276]
[1763957753794,2.0,87369.0,87351.0,0.04276]
[1763957754011,0.59696278,87370.0,87360.0,0.01314]
[1763957754012,2.0,87367.0,87360.0,0.01314]
[1763957754200,0.01058753,87366.0,87360.0,0.01314]
[1763957754339,2.0,87369.0,87360.0,0.01314]
[1763957754541,0.01059109,87368.0,87360.0,0.03828]
[1763957754742,0.86713325,87370.0,87360.0,0.01314]
[1763957754994,0.88293943,87380.0,87361.0,0.02514]
[1763957755164,2.0,87378.0,87361.0,0.02518936]
[1763957755341,2.0,87376.0,87361.0,0.02518936]
[1763957755548,0.86713325,87371.0,87361.0,0.02518936]
[1763957755964,0.88892634,87380.0,87370.0,0.01762]
[1763957756167,2.0,87378.0,87370.0,0.01762]
[1763957756370,0.88293943,87380.0,87379.0,0.01762]
[1763957756579,0.01580618,87380.0,87379.0,0.01762]
[1763957756779,0.12215214,87417.0,87379.0,0.04276]
[1763957756780,0.86713325,87400.0,87379.0,0.04276]
[1763957757003,0.01059419,87399.0,87379.0,0.04276]
[1763957757229,0.01059419,87398.0,87392.0,0.01314]
[1763957757384,0.88277548,87400.0,87392.0,0.01314]
[1763957757581,0.88277548,87400.0,87397.0,0.01314]
[1763957757790,0.01144321,87388.0,87368.0,0.01314]
[1763957758013,0.09696278,87398.0,87363.0,0.01314]
[1763957758014,2.0,87377.0,87363.0,0.01314]
[1763957758170,0.2289118,87370.0,87363.0,0.01314]
[1763957758376,0.22891704,87368.0,87363.0,0.01318936]
[1763957758572,0.22891186,87370.0,87363.0,0.01318936]
[1763957758773,0.86713325,87373.0,87363.0,0.01318936]
[1763957759779,0.86713325,87373.0,87363.0,0.01418936]
[1763957759983,0.22891438,87369.0,87363.0,0.01418936]
[1763957760187,0.86713325,87373.0,87363.0,0.01318936]
[1763957760607,0.86713325,87373.0,87364.0,0.01314]
[1763957761651,0.2289038,87373.0,87364.0,0.01314]
[1763957761813,0.86713325,87374.0,87364.0,0.01314]
[1763957762026,2.22892724,87364.0,87363.0,0.00104936]
[1763957762226,2.22892724,87364.0,87363.0,4.936e-05]
[1763957762227,2.25280685,87364.0,87363.0,4.936e-05]
[1763957762428,0.01144937,87341.0,87322.0,0.02514]
[1763957762645,0.02117961,87340.0,87328.0,0.01325786]
[1763957762857,0.22899775,87338.0,87328.0,0.01325786]
[1763957763050,0.02117961,87337.0,87328.0,0.01325786]